bitfinex-derivatives/quotes_BTCF0:USTF0_20241009
["timestamp","ask_amount","ask_price","bid_price","bid_amount"]
[1728509880956,0.0306,60762.0,60760.0,0.3608]
[1728509881142,0.0306,60762.0,60761.0,0.09172264]
[1728509881541,0.0306,60762.0,60761.0,0.17406564]
[1728509882153,0.0306,60762.0,60761.0,0.29406564]
[1728509882351,0.0326,60762.0,60761.0,0.29406564]
[1728509882555,0.0326,60762.0,60761.0,0.39213773]
[1728509883448,0.0346,60762.0,60761.0,0.39203311]
[1728509883644,0.004,60762.0,60761.0,0.39203311]
[1728509883965,0.004,60762.0,60761.0,0.40280156]
[1728509884149,0.00626948,60768.0,60767.0,0.082334]
[1728509884457,0.00246948,60768.0,60767.0,0.75265723]
[1728509884654,0.0344,60775.0,60767.0,1.66620264]
[1728509884858,0.086121,60778.0,60775.0,0.082322]
[1728509885051,0.0309,60780.0,60777.0,0.08145631]
[1728509885254,0.0309,60780.0,60779.0,0.443118]
[1728509885450,0.0309,60780.0,60779.0,0.61622063]
[1728509885647,0.0309,60780.0,60779.0,0.52449799]
[1728509885851,0.0309,60780.0,60779.0,0.61481087]
[1728509886163,0.0309,60780.0,60775.0,0.08137999]
[1728509886350,0.082322,60776.0,60775.0,0.08137999]
[1728509886660,0.082324,60775.0,60774.0,0.3608]
[1728509887951,0.082319,60779.0,60774.0,0.37555479]
[1728509888151,0.082319,60779.0,60775.0,0.1688035]
[1728509888355,0.08232,60778.0,60775.0,0.1688035]
[1728509888558,0.08232,60778.0,60775.0,0.12]
[1728509888857,0.082321,60777.0,60775.0,0.12]
[1728509889052,0.082321,60777.0,60774.0,0.42435829]
[1728509889247,0.082321,60777.0,60775.0,0.0488035]
[1728509889554,0.082322,60776.0,60774.0,0.42435829]
[1728509889958,0.082322,60776.0,60775.0,0.3608]
[1728509890461,0.082322,60776.0,60775.0,0.40957821]
[1728509890659,0.082322,60776.0,60775.0,0.3608]
[1728509891163,0.087322,60776.0,60775.0,0.3608]
[1728509891554,0.092322,60776.0,60775.0,0.3608]
[1728509892651,0.092322,60776.0,60774.0,0.06353291]
[1728509892860,0.092322,60776.0,60775.0,0.3608]
[1728509893165,0.092322,60776.0,60775.0,0.40957812]
[1728509893359,0.092322,60776.0,60775.0,0.3608]
[1728509894761,0.088322,60776.0,60775.0,0.3658]
[1728509894968,0.083322,60776.0,60775.0,0.43082645]
[1728509895167,0.084322,60776.0,60775.0,0.3698]
[1728509895369,0.002,60776.0,60775.0,0.572124]
[1728509895559,0.002,60776.0,60775.0,0.63714429]
[1728509896661,0.002,60776.0,60775.0,0.572124]
[1728509896860,0.002,60776.0,60775.0,0.63714429]
[1728509897264,0.002,60776.0,60775.0,0.572124]
[1728509897563,0.002,60776.0,60775.0,0.65338122]
[1728509897873,0.002,60776.0,60775.0,0.66232097]
[1728509898064,0.002,60776.0,60775.0,0.74356475]
[1728509898367,0.002,60776.0,60775.0,0.66232097]
[1728509898668,0.002,60776.0,60775.0,0.74354467]
[1728509901259,0.002,60776.0,60775.0,0.572124]
[1728509905974,0.002,60776.0,60775.0,2.072124]
[1728509906166,0.0308,60784.0,60783.0,0.082313]
[1728509906372,0.0308,60784.0,60783.0,0.563113]
[1728509907276,0.0318,60784.0,60783.0,0.563113]
[1728509907668,0.0328,60784.0,60783.0,0.563113]
[1728509909367,0.0328,60784.0,60783.0,0.73444432]
[1728509910177,0.002,60784.0,60783.0,0.73444432]
[1728509910473,0.0038,60791.0,60790.0,0.082303]
[1728509910667,0.03,60792.0,60791.0,0.082302]
[1728509910867,0.03,60792.0,60791.0,0.26955442]
[1728509911071,0.03,60792.0,60791.0,0.17197647]
[1728509911670,0.03,60792.0,60791.0,0.17297647]
[1728509911876,0.039,60792.0,60791.0,0.27054838]
[1728509912275,0.0038,60798.0,60795.0,0.082296]
[1728509912472,0.082293,60798.0,60797.0,0.3608]
[1728509913280,0.082293,60798.0,60797.0,0.56206424]
[1728509913578,0.082293,60798.0,60797.0,0.4808]
[1728509914168,0.0318,60800.0,60797.0,0.56206424]
[1728509914368,0.0318,60800.0,60799.0,0.082291]
[1728509914576,0.0318,60800.0,60799.0,0.16350927]
[1728509914784,0.0318,60800.0,60799.0,0.25293083]
[1728509914986,0.0318,60800.0,60799.0,0.17171256]
[1728509915171,0.0318,60800.0,60799.0,0.08942156]
[1728509915370,0.11409,60800.0,60799.0,0.08942156]
[1728509915576,0.11409,60800.0,60799.0,0.17060069]
[1728509915782,0.082291,60799.0,60798.0,0.08121892]
[1728509915977,0.082291,60799.0,60798.0,0.17057233]
[1728509916178,0.082291,60799.0,60797.0,0.3618]
[1728509916481,0.082293,60798.0,60797.0,0.3618]
[1728509916884,0.082293,60798.0,60797.0,0.3608]
[1728509918477,0.082293,60798.0,60797.0,0.3618]
[1728509919585,0.0318,60800.0,60798.0,0.082291]
[1728509919785,0.0318,60800.0,60799.0,0.12]
[1728509920980,0.0338,60800.0,60799.0,0.202291]
[1728509921591,0.0348,60800.0,60799.0,0.202291]
[1728509921885,0.003,60800.0,60799.0,0.202291]
[1728509922688,0.003,60800.0,60799.0,0.563091]
[1728509925176,0.037,60807.0,60799.0,1.57424]
[1728509925391,0.0332,60807.0,60806.0,0.563082]
[1728509925588,0.0306,60810.0,60806.0,0.4808]
[1728509925789,0.0306,60810.0,60809.0,0.25095306]
[1728509926090,0.0301,60816.0,60810.0,0.082276]
[1728509926389,0.112369,60816.0,60815.0,0.4808]
[1728509927991,0.126369,60816.0,60815.0,0.4818]
[1728509928393,0.140369,60816.0,60815.0,0.4818]
[1728509929087,0.126369,60816.0,60815.0,0.4818]
[1728509929292,0.140369,60816.0,60815.0,0.4828]
[1728509931306,0.140368,60816.0,60815.0,0.4828]
[1728509934286,0.122368,60816.0,60815.0,0.4818]
[1728509934488,0.133368,60816.0,60815.0,0.4828]
[1728509938096,0.0511,60816.0,60815.0,0.4828]
[1728509938301,0.0511,60816.0,60815.0,0.56507]
[1728509940497,0.021,60816.0,60815.0,0.56507]
[1728509943600,0.021,60816.0,60815.0,1.65835]
[1728509943803,0.011,60816.0,60815.0,0.56407]
[1728509943999,0.009,60816.0,60815.0,0.56307]
[1728509949503,0.009,60816.0,60815.0,0.62796947]
[1728509950098,0.009,60816.0,60815.0,0.98876947]
[1728509950896,0.009,60816.0,60815.0,0.98879153]
[1728509951499,0.009,60816.0,60815.0,0.92387]
[1728509956204,0.082257,60825.0,60820.0,0.082263]
[1728509956404,0.082257,60825.0,60822.0,0.4808]
[1728509957309,0.011,60823.0,60822.0,0.4808]
[1728509957513,0.011,60823.0,60822.0,0.8416]
[1728509957811,0.011,60823.0,60822.0,0.4808]
[1728509958309,0.095257,60825.0,60822.0,0.4818]
[1728509958709,0.108257,60825.0,60822.0,0.122]
[1728509959011,0.108257,60825.0,60824.0,0.3608]
[1728509959313,0.012,60823.0,60822.0,0.13707773]
[1728509959610,0.012,60823.0,60822.0,0.49687773]
[1728509959808,0.011,60823.0,60822.0,0.49687773]
[1728509959998,0.011,60823.0,60822.0,0.49787773]
[1728509960503,0.011,60823.0,60822.0,0.13707773]
[1728509960708,0.011,60823.0,60822.0,0.49787773]
[1728509961400,0.023,60823.0,60822.0,0.13707773]
[1728509961612,0.023,60823.0,60822.0,0.49787773]
[1728509961800,0.705259,60823.0,60822.0,0.04875204]
[1728509962011,0.082271,60814.0,60813.0,0.06492931]
[1728509962205,0.082274,60812.0,60811.0,0.06492931]
[1728509962510,0.082275,60811.0,60810.0,0.06492931]
[1728509962812,0.114675,60811.0,60810.0,0.06492931]
[1728509963911,0.114675,60811.0,60810.0,0.07986645]
[1728509964109,0.114675,60811.0,60810.0,0.08086645]
[1728509964709,0.114675,60811.0,60810.0,0.44166645]
[1728509965111,0.114675,60811.0,60810.0,0.08086645]
[1728509965317,0.114675,60811.0,60810.0,0.08186645]
[1728509965520,0.114675,60811.0,60810.0,0.44266645]
[1728509966221,0.114675,60811.0,60810.0,0.37773714]
[1728509968109,0.114675,60811.0,60810.0,0.3628]
[1728509969210,0.114675,60811.0,60810.0,0.42765169]
[1728509969722,0.114675,60811.0,60810.0,0.3628]
[1728509969911,0.114675,60811.0,60810.0,0.002]
[1728509973421,0.475475,60811.0,60810.0,0.002]
[1728509976017,0.595475,60811.0,60810.0,0.002]
[1728509978118,0.114675,60811.0,60810.0,0.002]
[1728509986526,0.234675,60811.0,60810.0,0.002]
[1728509988221,0.234675,60811.0,60810.0,0.06685169]
[1728509988431,0.234675,60811.0,60810.0,0.002]
[1728509989028,0.234675,60811.0,60810.0,0.06685169]
[1728509989922,0.202275,60811.0,60810.0,0.06685169]
[1728509990123,0.202275,60811.0,60810.0,0.002]
[1728510000438,0.082275,60811.0,60810.0,0.002]
[1728510009939,0.14385705,60811.0,60810.0,0.002]
[1728510011734,0.082275,60811.0,60810.0,0.002]
[1728510012838,0.14387555,60811.0,60810.0,0.002]
[1728510013744,0.082275,60811.0,60810.0,0.002]
[1728510014642,0.082275,60811.0,60810.0,0.06704338]
[1728510021649,0.082275,60811.0,60810.0,0.002]
[1728510039557,0.082275,60811.0,60810.0,0.09074228]
[1728510043963,0.082275,60811.0,60810.0,0.002]
[1728510046367,0.082275,60811.0,60810.0,0.06689462]
[1728510051072,0.082275,60811.0,60810.0,0.09051007]
[1728510054868,0.082275,60811.0,60810.0,0.0906451]
[1728510056062,0.082275,60811.0,60810.0,0.18810352]
[1728510059078,0.082275,60811.0,60810.0,0.002]
[1728510060569,0.08222373,60811.0,60810.0,0.002]
[1728510065988,0.08222373,60811.0,60810.0,0.18833712]
[1728510068589,0.08222373,60811.0,60810.0,0.19676364]
[1728510069994,0.08222373,60811.0,60810.0,0.0908787]
[1728510071798,0.08222373,60811.0,60810.0,0.10550753]
[1728510072696,0.08222373,60811.0,60810.0,0.10530545]
[1728510073294,0.08222373,60811.0,60810.0,0.09067662]
[1728510073700,0.08222373,60811.0,60810.0,0.18816024]
[1728510073999,0.08222373,60811.0,60810.0,0.002]
[1728510081200,0.08222373,60811.0,60810.0,0.09081949]
[1728510087002,0.08222373,60811.0,60810.0,0.09084876]
[1728510093608,0.08222373,60811.0,60810.0,0.18833238]
[1728510093810,0.08222373,60811.0,60810.0,0.09084876]
[1728510096011,0.08222373,60811.0,60810.0,0.13978413]
[1728510096211,0.08222373,60811.0,60810.0,0.05093537]
[1728510097106,0.08222373,60811.0,60810.0,0.002]
[1728510104611,0.08222373,60811.0,60810.0,0.06724527]
[1728510105012,0.08222373,60811.0,60810.0,0.002]
[1728510105212,0.08222373,60811.0,60810.0,0.06721664]
[1728510105414,0.08222373,60811.0,60810.0,0.002]
[1728510105916,0.44302373,60811.0,60810.0,0.002]
[1728510106818,1.63634373,60811.0,60810.0,0.002]
[1728510107125,1.63634373,60811.0,60810.0,0.05087866]
[1728510107312,1.63634373,60811.0,60810.0,6.6e-07]
[1728510107510,0.08228,60807.0,60806.0,0.06521664]
[1728510107710,0.08228,60807.0,60805.0,0.06521664]
[1728510107711,0.12,60807.0,60805.0,0.06521664]
[1728510107913,1.150542,60806.0,60802.0,0.06521664]
[1728510108213,1.150542,60806.0,60798.0,0.06521664]
[1728510108214,0.082291,60799.0,60798.0,0.06521664]
[1728510108416,0.082294,60797.0,60796.0,0.06516556]
[1728510108623,0.563094,60797.0,60796.0,0.06516556]
[1728510109013,0.563094,60797.0,60793.0,0.0077]
[1728510109219,0.202298,60794.0,60793.0,0.0077]
[1728510109419,0.202298,60794.0,60791.0,0.08142313]
[1728510109615,0.202301,60792.0,60791.0,0.08142313]
[1728510110109,0.12,60792.0,60790.0,0.08142313]
[1728510110310,0.12,60792.0,60789.0,0.07948046]
[1728510110526,0.12,60790.0,60788.0,0.3608]
[1728510110716,0.202303,60790.0,60789.0,0.08985201]
[1728510111814,0.202303,60790.0,60781.0,0.0077]
[1728510111815,0.082314,60782.0,60781.0,0.0077]
[1728510112011,0.202314,60782.0,60781.0,0.09001118]
[1728510112309,0.202314,60782.0,60778.0,0.09748362]
[1728510112310,0.12,60782.0,60777.0,0.0332]
[1728510112515,0.12,60779.0,60777.0,0.0332]
[1728510113420,0.08232,60778.0,60777.0,0.0332]
[1728510114120,0.08232,60778.0,60777.0,0.04573492]
[1728510114626,0.08332,60778.0,60777.0,0.04573492]
[1728510115221,0.08432,60778.0,60777.0,0.05673492]
[1728510116228,0.08432,60778.0,60777.0,0.024]
[1728510118622,0.082325,60775.0,60772.0,0.01453479]
[1728510118823,0.082325,60775.0,60771.0,0.299029]
[1728510119026,0.082325,60775.0,60772.0,0.082327]
[1728510119224,0.082325,60775.0,60773.0,0.082326]
[1728510119729,0.083325,60775.0,60773.0,0.082326]
[1728510120115,0.082326,60774.0,60772.0,0.013]
[1728510120827,0.082326,60774.0,60773.0,0.013]
[1728510121224,0.082326,60774.0,60771.0,0.19392801]
[1728510121425,0.083326,60774.0,60772.0,0.013]
[1728510121639,0.082326,60773.0,60772.0,0.013]
[1728510122723,0.082326,60773.0,60771.0,0.19392801]
[1728510123533,0.083326,60773.0,60771.0,0.19392801]
[1728510124330,0.084326,60773.0,60771.0,0.19392801]
[1728510127229,0.084326,60773.0,60772.0,0.3608]
[1728510128835,0.084326,60773.0,60772.0,0.35839699]
[1728510129429,0.084326,60773.0,60772.0,0.44998025]
[1728510129630,0.083326,60773.0,60772.0,0.44998025]
[1728510130533,0.083326,60773.0,60772.0,0.45002751]
[1728510130733,0.084326,60773.0,60772.0,0.45002751]
[1728510132137,0.084326,60773.0,60772.0,0.45243052]
[1728510135436,0.084326,60773.0,60772.0,0.55022602]
[1728510135638,0.084326,60773.0,60772.0,0.4527424]
[1728510135843,0.084326,60773.0,60772.0,0.55048197]
[1728510136337,0.084326,60773.0,60772.0,0.56234198]
[1728510141237,0.002,60773.0,60772.0,0.56234198]
[1728510142343,0.002,60773.0,60772.0,0.20154198]
[1728510142830,0.002,60773.0,60772.0,0.56234198]
[1728510143033,0.12,60775.0,60772.0,0.56234198]
[1728510143034,0.0038,60779.0,60778.0,0.08232]
[1728510143237,0.0328,60786.0,60781.0,0.082316]
[1728510143238,0.0038,60786.0,60781.0,0.082316]
[1728510143448,0.00246834,60787.0,60786.0,0.082309]
[1728510143644,0.00246834,60787.0,60786.0,2.02422775]
[1728510143948,0.00246834,60787.0,60786.0,1.50404626]
[1728510144135,0.0038,60794.0,60786.0,1.55168183]
[1728510144338,0.082292,60799.0,60793.0,0.3608]
[1728510144339,0.086095,60797.0,60793.0,0.3608]
[1728510144544,0.082295,60797.0,60795.0,0.09776959]
[1728510144849,0.082292,60799.0,60796.0,0.18971199]
[1728510145140,0.082293,60798.0,60797.0,0.0919424]
[1728510145534,0.12,60801.0,60797.0,0.0919424]
[1728510145734,0.113791,60800.0,60799.0,0.3608]
[1728510145948,0.113791,60800.0,60799.0,0.45175339]
[1728510146839,0.113791,60800.0,60799.0,0.45375339]
[1728510147148,0.0328,60805.0,60799.0,0.53604339]
[1728510147149,0.082285,60804.0,60799.0,0.53604339]
[1728510147347,0.082283,60806.0,60801.0,0.082287]
[1728510147552,0.21695319,60806.0,60805.0,0.3608]
[1728510148144,0.082279,60808.0,60805.0,0.936443]
[1728510148448,0.082276,60811.0,60807.0,0.08228]
[1728510148640,0.082276,60811.0,60810.0,0.3608]
[1728510149642,0.090276,60811.0,60810.0,0.3608]
[1728510150651,0.097276,60811.0,60810.0,0.3608]
[1728510155550,0.217276,60811.0,60810.0,0.3608]
[1728510157753,0.082278,60809.0,60808.0,0.082279]
[1728510158644,0.082281,60807.0,60805.0,0.01460708]
[1728510158846,0.082281,60807.0,60804.0,0.443084]
[1728510159446,0.082281,60807.0,60805.0,0.12]
[1728510159642,0.082281,60807.0,60805.0,0.2141]
[1728510159847,0.086281,60807.0,60805.0,0.2141]
[1728510160149,0.004,60807.0,60805.0,0.2141]
[1728510160348,0.082282,60806.0,60805.0,0.2141]
[1728510161857,0.082282,60806.0,60805.0,0.5749]
[1728510162356,0.084282,60806.0,60805.0,0.5749]
[1728510162746,0.087282,60806.0,60805.0,0.5749]
[1728510165942,0.087282,60806.0,60805.0,0.5437]
[1728510167043,0.087282,60806.0,60805.0,0.4237]
[1728510167250,0.087282,60806.0,60805.0,0.5437]
[1728510171155,0.087282,60806.0,60805.0,0.5117]
[1728510171657,0.087282,60806.0,60805.0,0.68355145]
[1728510172163,0.087282,60806.0,60805.0,0.68354076]
[1728510172360,0.087282,60806.0,60805.0,0.69996943]
[1728510173451,0.087282,60806.0,60805.0,0.60219984]
[1728510173858,0.087282,60806.0,60805.0,0.67940189]
[1728510174356,0.087282,60806.0,60805.0,0.57129984]
[1728510175366,0.087282,60806.0,60805.0,0.67949009]
[1728510175555,0.087282,60806.0,60805.0,0.57129984]
[1728510176155,0.087282,60806.0,60805.0,0.67951483]
[1728510180963,0.087282,60806.0,60805.0,0.67971314]
[1728510185365,0.087282,60806.0,60805.0,0.68021167]
[1728510186456,0.087282,60806.0,60805.0,0.77794141]
[1728510186661,0.087282,60806.0,60805.0,0.66950381]
[1728510187462,0.087282,60806.0,60805.0,0.57852974]
[1728510187665,0.087282,60806.0,60805.0,0.66947495]
[1728510189572,0.087282,60806.0,60805.0,0.57174521]
[1728510191073,0.087282,60806.0,60805.0,0.66947495]
[1728510191269,0.087282,60806.0,60805.0,0.57174521]
[1728510194474,0.087282,60806.0,60805.0,0.66947495]
[1728510194672,0.087282,60806.0,60805.0,0.68013355]
[1728510198678,0.005,60806.0,60805.0,0.76241655]
[1728510199571,0.005,60806.0,60805.0,0.76248624]
[1728510200382,0.005,60806.0,60805.0,0.8765445]
[1728510201080,0.0038,60813.0,60812.0,0.082274]
[1728510201380,0.00246764,60816.0,60815.0,0.08227]
[1728510201583,0.00246764,60816.0,60815.0,0.28167324]
[1728510201883,0.00246764,60816.0,60815.0,0.40674147]
[1728510202283,0.00246764,60816.0,60815.0,0.28167324]
[1728510202483,0.00846764,60816.0,60815.0,0.52035647]
[1728510202780,0.08226,60822.0,60815.0,0.31325479]
[1728510202984,0.08226,60822.0,60821.0,0.12]
[1728510203276,0.0314,60826.0,60821.0,0.30850024]
[1728510203482,0.113655,60826.0,60825.0,0.3608]
[1728510203684,0.113655,60826.0,60825.0,0.45177022]
[1728510204680,0.113655,60826.0,60825.0,0.53213203]
[1728510204882,0.113655,60826.0,60825.0,0.45086986]
[1728510205075,0.113655,60826.0,60825.0,0.53214377]
[1728510205283,0.113655,60826.0,60825.0,0.57086986]
[1728510205673,0.127655,60826.0,60825.0,0.56204755]
[1728510205881,0.141655,60826.0,60825.0,0.56304755]
[1728510206086,0.141655,60826.0,60825.0,0.57190325]
[1728510206286,0.141655,60826.0,60825.0,0.4818]
[1728510206872,0.141655,60826.0,60825.0,0.5630139]
[1728510207183,0.110255,60826.0,60825.0,0.4818]
[1728510207389,0.110255,60826.0,60825.0,0.57180959]
[1728510207886,0.110255,60826.0,60825.0,0.65299993]
[1728510208083,0.110255,60826.0,60825.0,0.57180959]
[1728510208683,0.110255,60826.0,60825.0,0.4818]
[1728510208881,0.028,60826.0,60825.0,0.564056]
[1728510210381,0.018,60826.0,60825.0,0.563056]
[1728510210989,0.009,60826.0,60825.0,0.563056]
[1728510212375,0.001,60826.0,60825.0,0.563056]
[1728510212587,0.002,60826.0,60825.0,0.563056]
[1728510212989,0.001,60826.0,60825.0,0.563056]
[1728510213185,0.001,60826.0,60825.0,0.567056]
[1728510214289,0.082247,60832.0,60828.0,0.082252]
[1728510214477,0.082247,60832.0,60831.0,0.4808]
[1728510222487,0.082247,60832.0,60831.0,0.49547259]
[1728510222690,0.0302,60833.0,60831.0,0.57772059]
[1728510223892,0.0312,60833.0,60831.0,0.57772059]
[1728510224690,0.0322,60833.0,60831.0,0.57772059]
[1728510230888,0.114445,60833.0,60831.0,0.57772059]
[1728510231289,0.0322,60833.0,60831.0,0.57772059]
[1728510231487,0.0322,60833.0,60831.0,0.65882602]
[1728510231791,0.0322,60833.0,60832.0,0.082247]
[1728510232892,0.0312,60833.0,60832.0,0.082247]
[1728510233101,0.0322,60833.0,60832.0,0.082247]
[1728510233896,0.001,60833.0,60832.0,0.082247]
[1728510234100,0.002,60833.0,60832.0,0.202247]
[1728510235209,0.002,60833.0,60832.0,0.28360616]
[1728510235796,0.002,60833.0,60832.0,0.202247]
[1728510236196,0.002,60833.0,60832.0,0.25338849]
[1728510236504,0.002,60833.0,60832.0,0.28360616]
[1728510237206,0.002,60833.0,60832.0,0.29205846]
[1728510238597,0.002,60833.0,60832.0,0.38968393]
[1728510239206,0.002,60833.0,60832.0,0.38954725]
[1728510239509,0.002,60833.0,60832.0,0.26733351]
[1728510239900,0.002,60833.0,60832.0,0.202247]
[1728510240211,0.002,60833.0,60832.0,0.62813351]
[1728510240403,0.002,60833.0,60832.0,0.443047]
[1728510240598,0.002,60833.0,60832.0,0.62813351]
[1728510240803,0.002,60833.0,60832.0,0.563047]
[1728510241001,0.0038,60839.0,60838.0,0.082238]
[1728510241205,0.082235,60841.0,60838.0,0.563038]
[1728510241407,0.082235,60841.0,60839.0,0.082237]
[1728510241706,0.0678,60846.0,60839.0,0.082237]
[1728510241707,0.082232,60843.0,60839.0,0.082237]
[1728510241902,0.082233,60842.0,60839.0,0.082237]
[1728510243807,0.0486,60840.0,60839.0,0.083237]
[1728510244610,0.0486,60840.0,60839.0,0.203237]
[1728510246502,0.0486,60840.0,60839.0,0.29266513]
[1728510247303,0.0486,60840.0,60839.0,0.29266939]
[1728510249109,0.0486,60840.0,60839.0,0.39035813]
[1728510250103,0.016,60840.0,60839.0,0.39035813]
[1728510250308,0.016,60840.0,60839.0,0.29266939]
[1728510250709,0.016,60840.0,60839.0,0.39928736]
[1728510252010,0.014,60840.0,60839.0,0.39928736]
[1728510252906,0.012,60840.0,60839.0,0.39928736]
[1728510254519,0.012,60840.0,60839.0,0.203237]
[1728510256725,0.0038,60846.0,60839.0,0.203237]
[1728510257024,0.0038,60850.0,60845.0,0.4808]
[1728510257223,0.145919,60853.0,60845.0,0.4808]
[1728510257224,0.145919,60853.0,60851.0,0.12]
[1728510257517,0.145919,60853.0,60851.0,0.4808]
[1728510257734,0.113119,60853.0,60851.0,0.4808]
[1728510257919,0.08468495,60852.0,60851.0,0.4808]
[1728510258617,0.09268495,60852.0,60851.0,0.4818]
[1728510259020,0.09968495,60852.0,60851.0,0.4828]
[1728510264326,0.09968495,60852.0,60851.0,0.54778039]
[1728510266033,0.09968495,60852.0,60851.0,0.42778039]
[1728510266231,0.09968495,60852.0,60851.0,0.54778039]
[1728510269633,0.01746595,60852.0,60851.0,0.57980442]
[1728510269833,0.01746595,60852.0,60851.0,0.6447829]
[1728510271124,0.01746595,60852.0,60851.0,0.57980442]
[1728510271734,0.01746595,60852.0,60851.0,0.6447829]
[1728510271935,0.015,60852.0,60851.0,0.45980442]
[1728510272134,0.015,60852.0,60851.0,0.57980442]
[1728510281246,0.015,60852.0,60851.0,0.37758342]
[1728510281440,0.015,60852.0,60851.0,0.49758342]
[1728510284644,0.015,60852.0,60851.0,0.58652889]
[1728510285350,0.015,60852.0,60851.0,0.69255711]
[1728510286241,0.015,60852.0,60851.0,0.58652889]
[1728510287048,0.015,60852.0,60851.0,0.49758342]
[1728510287251,0.015,60852.0,60851.0,0.58649391]
[1728510288552,0.015,60852.0,60851.0,0.66871491]
[1728510290355,0.015,60852.0,60851.0,0.66868198]
[1728510290552,0.015,60852.0,60851.0,0.41383507]
[1728510290857,0.015,60852.0,60851.0,0.66868198]
[1728510292455,0.015,60852.0,60851.0,0.77462774]
[1728510295259,0.015,60852.0,60851.0,0.68566473]
[1728510295461,0.015,60852.0,60851.0,0.77447657]
[1728510297256,0.015,60852.0,60851.0,0.77466434]
[1728510308165,0.0329,60858.0,60855.0,0.082215]
[1728510308463,0.0329,60858.0,60856.0,0.3608]
[1728510309065,0.0329,60858.0,60856.0,0.443014]
[1728510309366,0.0399,60858.0,60856.0,0.443014]
[1728510309760,0.0469,60858.0,60856.0,0.443014]
[1728510310466,0.0469,60858.0,60856.0,0.444014]
[1728510310868,0.0399,60858.0,60856.0,0.444014]
[1728510311070,0.0469,60858.0,60856.0,0.445014]
[1728510311369,0.0469,60858.0,60857.0,0.3608]
[1728510312465,0.0399,60858.0,60857.0,0.3608]
[1728510312769,0.0469,60858.0,60857.0,0.3618]
[1728510312968,0.0469,60858.0,60857.0,0.3628]
[1728510314169,0.129111,60858.0,60857.0,0.3628]
[1728510314367,0.129111,60858.0,60857.0,0.28090552]
[1728510315264,0.130111,60858.0,60857.0,0.28090552]
[1728510315964,0.137111,60858.0,60857.0,0.28090552]
[1728510317672,0.737111,60858.0,60857.0,0.28090552]
[1728510318059,0.737111,60858.0,60857.0,0.002]
[1728510318956,1.230071,60858.0,60857.0,0.002]
[1728510320965,1.350071,60858.0,60857.0,0.002]
[1728510322267,1.230071,60858.0,60857.0,0.09111539]
[1728510325574,1.350071,60858.0,60857.0,0.09111539]
[1728510329371,1.350071,60858.0,60857.0,0.002]
[1728510329774,1.350071,60858.0,60857.0,0.06686226]
[1728510330875,1.350071,60858.0,60857.0,0.002]
[1728510331268,1.350071,60858.0,60857.0,0.05069289]
[1728510333978,1.350071,60858.0,60857.0,0.002]
[1728510335279,1.350071,60858.0,60857.0,0.05066939]
[1728510335477,1.350071,60858.0,60849.0,0.07256226]
[1728510335777,1.350071,60858.0,60839.0,0.09716216]
[1728510335778,0.082224,60849.0,60848.0,0.06486226]
[1728510336882,1.175264,60849.0,60848.0,0.06586226]
[1728510337075,1.323564,60849.0,60848.0,0.06586226]
[1728510337271,1.323564,60849.0,60848.0,0.001]
[1728510337482,1.213564,60849.0,60848.0,0.001]
[1728510337687,1.333564,60849.0,60848.0,0.001]
[1728510338572,1.339564,60849.0,60848.0,0.002]
[1728510339186,1.35401298,60849.0,60848.0,0.002]
[1728510340589,1.46401298,60849.0,60848.0,0.002]
[1728510341183,1.35401298,60849.0,60848.0,0.002]
[1728510341382,0.12,60848.0,60842.0,0.08107783]
[1728510341684,0.082233,60842.0,60841.0,0.01121127]
[1728510341881,0.082233,60842.0,60841.0,0.10011158]
[1728510342079,0.575313,60842.0,60841.0,0.10011158]
[1728510342275,0.575313,60842.0,60841.0,0.08890031]
[1728510342276,0.082233,60842.0,60841.0,0.08890031]
[1728510342583,0.575313,60842.0,60841.0,0.08890031]
[1728510342786,0.575313,60842.0,60841.0,0.08839769]
[1728510342984,0.082233,60842.0,60841.0,0.08839769]
[1728510343681,0.447033,60842.0,60841.0,0.08839769]
[1728510346684,0.567033,60842.0,60841.0,0.08839769]
[1728510347678,0.4848,60842.0,60841.0,0.08835625]
[1728510347990,0.567033,60842.0,60841.0,0.08835625]
[1728510350993,0.567033,60842.0,60837.0,0.45796216]
[1728510350994,0.082238,60838.0,60837.0,0.3608]
[1728510351190,0.202238,60838.0,60837.0,0.44921943]
[1728510351892,0.202238,60838.0,60837.0,0.54638159]
[1728510352990,0.202238,60838.0,60837.0,0.54645361]
[1728510353192,0.202238,60838.0,60837.0,0.54945361]
[1728510353383,0.082238,60838.0,60837.0,0.54945361]
[1728510356400,0.082238,60838.0,60837.0,0.45229145]
[1728510356693,0.082238,60838.0,60837.0,0.54973137]
[1728510356895,0.082238,60838.0,60837.0,0.45229145]
[1728510357197,0.082238,60838.0,60837.0,0.54972952]
[1728510357780,0.082238,60838.0,60837.0,0.54972555]
[1728510358594,0.082238,60838.0,60837.0,0.45229145]
[1728510363793,0.082238,60838.0,60837.0,0.55787497]
[1728510367204,0.082234,60842.0,60837.0,1.65099497]
[1728510367505,0.082234,60842.0,60841.0,0.12]
[1728510368006,0.082234,60842.0,60841.0,0.1506]
[1728510368399,0.084234,60842.0,60841.0,0.1506]
[1728510369393,0.084234,60842.0,60841.0,0.0306]
[1728510369591,0.086234,60842.0,60841.0,0.0306]
[1728510370314,0.084234,60842.0,60841.0,0.0316]
[1728510370507,0.002,60842.0,60841.0,0.113834]
[1728510371308,0.002,60842.0,60841.0,0.24838151]
[1728510371606,0.0038,60848.0,60841.0,0.24838151]
[1728510371607,0.082228,60846.0,60843.0,0.082232]
[1728510371802,0.082228,60846.0,60845.0,0.3608]
[1728510372901,0.004,60846.0,60845.0,0.563029]
[1728510373410,0.004,60846.0,60845.0,0.76378216]